fUST/lending_fUST_20251008
["ID","MTS","AMOUNT","RATE_DAILY","PERIOD"]
[389964737,1759911054700,-217.166455,0.00021369,7]
[389964739,1759911054709,-165.133001,0.00021369,7]
[389964740,1759911054718,-7578.34404,0.00021369,7]
[389964742,1759911054727,-217.166455,0.00021369,7]
[389964744,1759911054736,-151.0,0.00021369,7]
[389964745,1759911054746,-165.133001,0.00021369,7]
[389964747,1759911054755,-151.0,0.00021369,7]
[389964749,1759911054764,-7578.34404,0.00021369,7]
[389964750,1759911054773,-217.166455,0.00021369,7]
[389964752,1759911054783,-151.0,0.00021369,7]
[389964754,1759911054792,-165.133001,0.00021369,7]
[389964755,1759911054801,-229.948858,0.00021369,7]
[389964757,1759911054810,-217.166455,0.00021369,7]
[389964759,1759911054825,-151.0,0.00021369,7]
[389964760,1759911054835,-7578.34404,0.00021369,7]
[389964762,1759911054845,-500.0,0.00021369,2]
[389964764,1759911054854,-165.133001,0.00021369,7]
[389964765,1759911054863,-300.377763,0.00021369,7]
[389964767,1759911054872,-217.166455,0.00021369,7]
[389964769,1759911054881,-7578.34404,0.00021369,7]
[389964770,1759911054890,-165.133001,0.00021369,7]
[389964772,1759911054899,-7578.34404,0.00021369,7]
[389964774,1759911054908,-217.166455,0.00021369,7]
[389964776,1759911054918,-165.133001,0.00021369,7]
[389964778,1759911054928,-217.166455,0.00021369,7]
[389964779,1759911054937,-7578.34404,0.00021369,7]
[389964781,1759911054946,-165.132993,0.00021369,7]
[389964783,1759911054956,-217.166455,0.00021369,7]
[389964785,1759911054965,-556.71709486,0.00021369,7]
[389964805,1759911055189,-7021.62694514,0.00021369,7]
[389964806,1759911055199,-217.166455,0.00021369,7]
[389964808,1759911055209,-7578.34404,0.00021369,7]
[389964810,1759911055218,-217.166459,0.00021369,7]
[389964812,1759911055228,-933.95,0.00021369,2]
[389964814,1759911055238,-7578.34404,0.00021369,7]
[389964816,1759911055248,-7578.34404,0.00021369,7]
[389964817,1759911055258,-7578.34404,0.00021369,7]
[389964819,1759911055270,-7578.34404,0.00021369,7]
[389964821,1759911055279,-7578.34404,0.00021369,7]
[389964823,1759911055289,-3176.0635379,0.00021369,7]
[389964825,1759911055306,-4402.2805021,0.00021369,7]
[389964827,1759911055315,-7578.34404,0.00021369,7]
[389964829,1759911055325,-500.0,0.00021369,2]
[389964831,1759911055336,-504.55015126,0.00021373,2]
[389964833,1759911055345,-357.21799696,0.00021373,2]
[389964834,1759911055355,-506.10369491,0.00021373,2]
[389964836,1759911055364,-500.0,0.00021373,2]
[389964838,1759911055374,-505.87634228,0.00021373,2]
[389964840,1759911055383,-501.51137138,0.00021373,2]
[389964841,1759911055393,-279.28265572,0.00021373,2]
[389964843,1759911055402,-501.1361281,0.00021373,2]
[389964845,1759911055412,-501.29636073,0.00021373,2]
[389964847,1759911055420,-507.37948871,0.00021373,2]
[389964849,1759911055429,-500.0,0.00021373,2]
[389964850,1759911055439,-298.6773613,0.00021373,2]
[389964852,1759911055449,-500.0,0.00021373,2]
[389964854,1759911055458,-150.30829023,0.00021373,2]
[389964856,1759911055468,-504.7555861,0.00021373,2]
[389964858,1759911055477,-30.33588825,0.00021373,2]
[389964887,1759911055814,-39.89749389,0.00021369,7]
[389964911,1759911056094,-998.36633143,0.00021369,7]
[389964914,1759911056116,-1748.71434867,0.00021369,7]
[389965774,1759911133068,9510.01,0.0002099,2]
[389965775,1759911133093,1401.85310283,0.0002099,2]
[389965776,1759911146455,169.779934,0.0002054,2]
[389965777,1759911151918,200.0,0.00026351,120]
[389965778,1759911167042,173.507769,0.00024,30]
[389965779,1759911237627,177.88318457,0.000207,2]
[389965780,1759911238355,177.88318457,0.000209,2]
[389965781,1759911271889,200.0,0.00025124,120]
[389965782,1759911282675,160.921377,0.00020367,2]
[389965783,1759911331353,200.0,0.00026262,120]
[389965784,1759911551339,177.88318456,0.000207,2]
[389965785,1759911570971,332.0,0.00020946,2]
[389965786,1759911577452,7401.80603247,0.0002099,2]
[389965787,1759911577474,8012.92396753,0.0002099,2]
[389965788,1759911765220,164.832381,0.00024,30]
[389965801,1759912032106,-191.20789074,0.00020223,14]
[389965802,1759912035101,-719.51565105,0.00020223,14]
[389965803,1759912035122,-150.0,0.00020223,2]
[389965804,1759912035141,-455.62089691,0.00020428,2]
[389965805,1759912200476,505.714708,0.00013699,2]
[389965858,1759912232196,-302.54622906,0.000189,2]
[389965860,1759912232205,-302.78797594,0.00019089,2]
[389965862,1759912232214,-300.0,0.00019999,2]
[389965864,1759912232223,-635.0,0.00019999,2]
[389965866,1759912232232,-29292.47061462,0.0002,2]
[389965867,1759912232242,-666.0,0.00020085,2]
[389965869,1759912232251,-505.714708,0.00020187,2]
[389965871,1759912232260,-4671.53,0.000203,2]
[389965873,1759912232269,-212.76653095,0.00020428,2]
[389965919,1759912238167,-402.43817185,0.00020187,3]
[389965920,1759912238177,-454.72031364,0.00020428,2]
[389965921,1759912238185,-172.5,0.00020823,2]
[389965922,1759912238194,-301.76314007,0.00021181,2]
[389965923,1759912238206,-30.23685993,0.00021181,2]
[389965924,1759912238216,-332.0,0.00021198,2]
[389965925,1759912238225,-332.0,0.00021243,2]
[389965926,1759912238234,-620.0,0.00021267,2]
[389965927,1759912238242,-389.214,0.00021268,2]
[389965928,1759912238251,-1787.90476475,0.00021269,3]
[389965929,1759912238262,-1009.518987,0.00021269,3]
[389965930,1759912238281,-361.57439764,0.00021269,3]
[389965931,1759912238291,-626.41221792,0.00021269,3]
[389965932,1759912238302,-760.0,0.00021269,3]
[389965933,1759912238317,-24177.99742312,0.00021269,3]
[389965934,1759912238326,-391.6932166,0.000213,2]
[389965935,1759912238336,-391.6932166,0.000213,2]
[389965936,1759912238345,-332.0,0.00021323,2]
[389965937,1759912238353,-1220.53661485,0.00021339,2]
[389965939,1759912238362,-177.67,0.00021346,2]
[389965940,1759912238372,-253.11482287,0.00021356,2]
[389965941,1759912238383,-500.0,0.00021356,2]
[389965942,1759912238393,-500.0,0.00021356,2]
[389965943,1759912238403,-500.0,0.00021356,2]
[389965944,1759912238412,-500.0,0.00021356,2]
[389965945,1759912238422,-500.0,0.00021356,2]
[389965946,1759912238432,-1000.0,0.00021356,2]
[389965947,1759912238442,-500.0,0.00021356,2]
[389965948,1759912238451,-18603.8837,0.00021356,2]
[389965949,1759912238461,-517.47399308,0.00021356,2]
[389965950,1759912238470,-500.0,0.00021356,2]
[389965951,1759912238480,-500.0,0.00021356,2]
[389965952,1759912238489,-500.0,0.00021356,2]
[389965953,1759912238499,-500.0,0.00021356,2]
[389965954,1759912238508,-500.0,0.00021356,2]
[389965955,1759912238517,-500.0,0.00021356,2]
[389965956,1759912238527,-500.0,0.00021356,2]
[389965957,1759912238536,-500.0,0.00021356,2]
[389965958,1759912238545,-500.0,0.00021356,2]
[389965959,1759912238555,-500.0,0.00021356,2]
[389965960,1759912238565,-500.0,0.00021356,2]
[389965961,1759912238575,-500.0,0.00021356,2]
[389965962,1759912238586,-801.95,0.00021359,3]
[389965963,1759912238597,-178.04,0.00021359,3]
[389965964,1759912238606,-356.09,0.00021359,3]
[389965965,1759912238616,-178.04,0.00021359,3]
[389965966,1759912238626,-534.17,0.00021359,3]
[389965967,1759912238637,-348.66,0.00021359,10]
[389965968,1759912238646,-177.67,0.00021359,2]
[389965969,1759912238656,-177.67,0.00021359,2]
[389965970,1759912238665,-177.67,0.00021359,2]
[389965971,1759912238675,-402.0838479,0.0002136,2]
[389965972,1759912238685,-160.0,0.0002136,2]
[389965973,1759912238694,-160.0,0.0002136,2]
[389965974,1759912238703,-160.0,0.0002136,2]
[389965975,1759912238713,-234.25206901,0.00021363,2]
[389965976,1759912238723,-160.0,0.00021364,2]
[389965977,1759912238732,-160.0,0.00021364,2]
[389965978,1759912238742,-2901.03,0.00021367,2]
[389965979,1759912238751,-306.68245578,0.00021368,2]
[389965980,1759912238761,-10000.0,0.00021368,2]
[389965981,1759912238771,-500.0,0.00021369,2]
[389965982,1759912238784,-530.69263608,0.00021369,2]
[389965983,1759912238793,-500.0,0.00021369,2]
[389965984,1759912238803,-501.31174321,0.00021369,2]
[389965985,1759912238813,-169.32076561,0.00021369,2]
[389965986,1759912238823,-500.0,0.00021369,2]
[389965987,1759912238833,-500.0,0.00021369,2]
[389965988,1759912238842,-506.15442407,0.00021369,2]
[389965989,1759912238854,-500.0,0.00021369,2]
[389965990,1759912238863,-500.0,0.00021369,2]
[389965991,1759912238873,-480.62103042,0.00021369,2]
[389965992,1759912238882,-500.0,0.00021369,2]
[389965993,1759912238891,-394.1520524,0.00021369,2]
[389965994,1759912238901,-500.0,0.00021369,2]
[389965995,1759912238910,-1045.16,0.00021369,2]
[389965996,1759912238919,-500.0,0.00021369,2]
[389965997,1759912238929,-626.69998853,0.00021369,2]
[389965998,1759912238939,-520.0,0.00021369,3]
[389965999,1759912238949,-502.62851123,0.00021369,2]
[389966000,1759912238959,-488.51803412,0.00021369,2]
[389966001,1759912238968,-500.0,0.00021369,2]
[389966002,1759912238977,-500.0,0.00021369,2]
[389966003,1759912238987,-500.0,0.00021369,2]
[389966004,1759912238996,-500.0,0.00021369,2]
[389966005,1759912239006,-500.0,0.00021369,2]
[389966006,1759912239016,-500.0,0.00021369,2]
[389966007,1759912239025,-500.0,0.00021369,2]
[389966008,1759912239034,-500.0,0.00021369,2]
[389966009,1759912239044,-500.0,0.00021369,2]
[389966010,1759912239054,-500.0,0.00021369,2]
[389966011,1759912239063,-500.0,0.00021369,2]
[389966012,1759912239072,-500.0,0.00021369,2]
[389966013,1759912239082,-500.0,0.00021369,2]
[389966014,1759912239091,-481.87688181,0.00021369,2]
[389966015,1759912239101,-500.0,0.00021369,2]
[389966016,1759912239110,-702.03,0.00021369,2]
[389966017,1759912239120,-500.0,0.00021369,2]
[389966018,1759912239130,-500.0,0.00021369,2]
[389966019,1759912239139,-808.81,0.00021369,2]
[389966020,1759912239149,-500.0,0.00021369,2]
[389966021,1759912239159,-500.0,0.00021369,2]
[389966022,1759912239167,-500.0,0.00021369,2]
[389966023,1759912239177,-803.49,0.00021369,2]
[389966024,1759912239187,-549.9,0.00021369,2]
[389966025,1759912239196,-500.0,0.00021369,2]
[389966026,1759912239206,-500.0,0.00021369,2]
[389966027,1759912239215,-500.0,0.00021369,2]
[389966028,1759912239224,-500.0,0.00021369,2]
[389966029,1759912239233,-961.27,0.00021369,2]
[389966030,1759912239243,-412.48717941,0.00021369,2]
[389966031,1759912239252,-500.0,0.00021369,2]
[389966032,1759912239261,-346.43586926,0.00021369,2]
[389966033,1759912239271,-726.74,0.00021369,2]
[389966034,1759912239281,-525.84027649,0.00021369,2]
[389966035,1759912239290,-778.44,0.00021369,2]
[389966036,1759912239299,-500.0,0.00021369,2]
[389966037,1759912239310,-500.0,0.00021369,2]
[389966038,1759912239319,-500.0,0.00021369,2]
[389966039,1759912239328,-500.0,0.00021369,2]
[389966040,1759912239338,-500.0,0.00021369,2]
[389966041,1759912239348,-500.0,0.00021369,2]
[389966042,1759912239357,-500.0,0.00021369,2]
[389966043,1759912239366,-500.0,0.00021369,2]
[389966044,1759912239376,-827.81,0.00021369,2]
[389966045,1759912239386,-631.12,0.00021369,2]
[389966046,1759912239396,-500.0,0.00021369,2]
[389966047,1759912239405,-500.0,0.00021369,2]
[389966048,1759912239415,-22902.3149304,0.00021369,2]
[389966049,1759912239424,-500.0,0.00021369,2]
[389966050,1759912239433,-500.0,0.00021369,2]
[389966051,1759912239443,-500.31414163,0.00021369,2]
[389966052,1759912239452,-551.51,0.00021369,2]
[389966053,1759912239461,-1224.64,0.00021369,2]
[389966054,1759912239471,-151.0,0.00021369,2]
[389966055,1759912239481,-500.0,0.00021369,2]
[389966056,1759912239490,-1000.0,0.00021369,2]
[389966057,1759912239500,-151.0,0.00021369,2]
[389966058,1759912239509,-500.0,0.00021369,2]
[389966059,1759912239518,-500.0,0.00021369,2]
[389966060,1759912239528,-1470.71,0.00021369,2]
[389966061,1759912239538,-757.2,0.00021369,2]
[389966062,1759912239548,-500.0,0.00021369,2]
[389966063,1759912239558,-500.0,0.00021369,2]
[389966064,1759912239567,-514.03,0.00021369,2]
[389966065,1759912239576,-500.0,0.00021369,2]
[389966066,1759912239586,-500.0,0.00021369,2]
[389966067,1759912239595,-630.52069328,0.00021369,2]
[389966068,1759912239605,-500.0,0.00021369,2]
[389966069,1759912239615,-500.0,0.00021369,2]
[389966070,1759912239625,-500.0,0.00021369,2]
[389966071,1759912239635,-500.0,0.00021369,2]
[389966072,1759912239644,-500.0,0.00021369,2]
[389966073,1759912239654,-500.0,0.00021369,2]
[389966075,1759912239663,-500.0,0.00021369,2]
[389966076,1759912239673,-500.0,0.00021369,2]
[389966077,1759912239683,-500.0,0.00021369,2]
[389966078,1759912239692,-500.0,0.00021369,2]
[389966079,1759912239701,-500.0,0.00021369,2]
[389966080,1759912239711,-500.0,0.00021369,2]
[389966081,1759912239721,-1024.67,0.00021369,2]
[389966082,1759912239730,-500.0,0.00021369,2]
[389966083,1759912239739,-3240.3066077,0.00021369,2]
[389966084,1759912239749,-500.0,0.00021369,2]
[389966085,1759912239759,-500.0,0.00021369,2]
[389966086,1759912239768,-500.0,0.00021369,2]
[389966087,1759912239782,-500.0,0.00021369,2]
[389966088,1759912239792,-500.0,0.00021369,2]
[389966089,1759912239801,-500.0,0.00021369,2]
[389966090,1759912239810,-744.66,0.00021369,2]
[389966091,1759912239821,-500.0,0.00021369,2]
[389966092,1759912239830,-2074.11,0.00021369,2]
[389966093,1759912239840,-500.0,0.00021369,2]
[389966094,1759912239851,-151.0,0.00021369,7]
[389966095,1759912239863,-500.0,0.00021369,2]
[389966096,1759912239874,-1557.46,0.00021369,2]
[389966097,1759912239883,-151.0,0.00021369,7]
[389966098,1759912239893,-500.0,0.00021369,2]
[389966099,1759912239903,-500.0,0.00021369,2]
[389966100,1759912239912,-500.0,0.00021369,2]
[389966101,1759912239921,-1313.15,0.00021369,2]
[389966102,1759912239931,-151.0,0.00021369,7]
[389966103,1759912239941,-500.0,0.00021369,2]
[389966104,1759912239950,-151.0,0.00021369,7]
[389966105,1759912239964,-500.0,0.00021369,2]
[389966107,1759912239974,-500.0,0.00021369,2]
[389966109,1759912239983,-500.0,0.00021369,2]
[389966110,1759912239993,-1313.41,0.00021369,2]
[389966111,1759912240002,-500.0,0.00021369,2]
[389966112,1759912240011,-500.0,0.00021369,2]
[389966113,1759912240021,-774.76,0.00021369,2]
[389966114,1759912240030,-500.0,0.00021369,2]
[389966115,1759912240040,-631.32,0.00021369,2]
[389966116,1759912240050,-631.32,0.00021369,2]
[389966117,1759912240059,-631.32,0.00021369,2]
[389966119,1759912240067,-631.32,0.00021369,2]
[389966121,1759912240076,-631.32,0.00021369,2]
[389966123,1759912240085,-500.0,0.00021369,2]
[389966125,1759912240094,-631.32,0.00021369,2]
[389966127,1759912240104,-500.0,0.00021369,2]
[389966129,1759912240113,-631.32,0.00021369,2]
[389966131,1759912240122,-631.32,0.00021369,2]
[389966133,1759912240131,-631.32,0.00021369,2]
[389966135,1759912240140,-631.32,0.00021369,2]
[389966137,1759912240150,-631.32,0.00021369,2]
[389966139,1759912240161,-500.0,0.00021369,2]
[389966141,1759912240173,-631.32,0.00021369,2]
[389966143,1759912240183,-631.32,0.00021369,2]
[389966145,1759912240193,-631.32,0.00021369,2]
[389966147,1759912240202,-631.32,0.00021369,2]
[389966149,1759912240211,-631.32,0.00021369,2]
[389966150,1759912240220,-631.32,0.00021369,2]
[389966153,1759912240230,-631.32,0.00021369,2]
[389966155,1759912240239,-631.32,0.00021369,2]
[389966156,1759912240248,-631.32,0.00021369,2]
[389966158,1759912240257,-631.32,0.00021369,2]
[389966161,1759912240267,-631.32,0.00021369,2]
[389966162,1759912240276,-631.32,0.00021369,2]
[389966164,1759912240285,-631.4290148,0.00021369,2]
[389966166,1759912240294,-977.89,0.00021369,2]
[389966168,1759912240303,-500.0,0.00021369,2]
[389966170,1759912240313,-500.0,0.00021369,2]
[389966172,1759912240322,-500.0,0.00021369,2]
[389966174,1759912240331,-500.0,0.00021369,2]
[389966200,1759912240540,-500.0,0.00021369,2]
[389966202,1759912240550,-509.73600551,0.00021369,2]
[389966204,1759912240559,-500.0,0.00021369,2]
[389966206,1759912240569,-500.0,0.00021369,2]
[389966208,1759912240578,-1571.19,0.00021369,2]
[389966210,1759912240587,-502.35707718,0.00021369,2]
[389966212,1759912240597,-1032.09,0.00021369,2]
[389966214,1759912240606,-500.0,0.00021369,2]
[389966216,1759912240614,-481.50566544,0.00021369,2]
[389966218,1759912240624,-500.0,0.00021369,2]
[389966220,1759912240633,-829.97,0.00021369,2]
[389966222,1759912240642,-500.0,0.00021369,2]
[389966224,1759912240652,-151.0,0.00021369,7]
[389966226,1759912240661,-151.0,0.00021369,7]
[389966228,1759912240670,-151.0,0.00021369,7]
[389966230,1759912240679,-500.0,0.00021369,2]
[389966232,1759912240688,-1201.38,0.00021369,2]
[389966234,1759912240697,-500.0,0.00021369,2]
[389966236,1759912240705,-500.0,0.00021369,2]
[389966238,1759912240715,-500.0,0.00021369,2]
[389966240,1759912240723,-502.71838591,0.00021369,2]
[389966242,1759912240733,-648.81,0.00021369,2]
[389966244,1759912240742,-500.0,0.00021369,2]
[389966246,1759912240752,-500.0,0.00021369,2]
[389966248,1759912240761,-500.0,0.00021369,2]
[389966250,1759912240770,-500.0,0.00021369,2]
[389966252,1759912240784,-504.32650793,0.00021369,2]
[389966254,1759912240793,-500.0,0.00021369,2]
[389966256,1759912240802,-500.0,0.00021369,2]
[389966258,1759912240811,-500.0,0.00021369,2]
[389966260,1759912240822,-395.58439589,0.00021369,2]
[389966262,1759912240832,-1327.42,0.00021369,2]
[389966264,1759912240841,-500.0,0.00021369,2]
[389966266,1759912240852,-500.0,0.00021369,2]
[389966268,1759912240862,-151.0,0.00021369,7]
[389966270,1759912240871,-534.58,0.00021369,2]
[389966272,1759912240880,-500.0,0.00021369,2]
[389966274,1759912240890,-646.31951685,0.00021369,2]
[389966276,1759912240899,-500.0,0.00021369,2]
[389966278,1759912240907,-500.0,0.00021369,2]
[389966280,1759912240916,-558.22,0.00021369,2]
[389966282,1759912240926,-151.0,0.00021369,7]
[389966283,1759912240939,-151.0,0.00021369,7]
[389966285,1759912240948,-914.25,0.00021369,2]
[389966287,1759912240958,-502.9593191,0.00021369,2]
[389966289,1759912240968,-500.0,0.00021369,2]
[389966291,1759912240977,-500.0,0.00021369,2]
[389966293,1759912240986,-1431.13,0.00021369,2]
[389966295,1759912240995,-500.0,0.00021369,2]
[389966297,1759912241005,-500.0,0.00021369,2]
[389966299,1759912241015,-151.0,0.00021369,7]
[389966301,1759912241024,-500.0,0.00021369,2]
[389966303,1759912241033,-184.628592,0.00021369,7]
[389966305,1759912241042,-500.0,0.00021369,2]
[389966307,1759912241051,-500.0,0.00021369,2]
[389966309,1759912241060,-500.0,0.00021369,2]
[389966311,1759912241069,-151.0,0.00021369,7]
[389966313,1759912241079,-151.0,0.00021369,7]
[389966315,1759912241088,-489.36205432,0.00021369,2]
[389966317,1759912241098,-432.32822683,0.00021369,2]
[389966319,1759912241107,-500.0,0.00021369,2]
[389966321,1759912241117,-500.0,0.00021369,2]
[389966323,1759912241127,-500.5358625,0.00021369,2]
[389966326,1759912241138,-500.0,0.00021369,2]
[389966327,1759912241147,-500.96633951,0.00021369,2]
[389966329,1759912241156,-500.33300307,0.00021369,2]
[389966331,1759912241166,-500.0,0.00021369,2]
[389966333,1759912241174,-361.74685083,0.00021369,2]
[389966335,1759912241184,-500.0,0.00021369,2]
[389966337,1759912241193,-500.0,0.00021369,2]
[389966339,1759912241202,-500.0,0.00021369,2]
[389966341,1759912241211,-613.90643393,0.00021369,2]
[389966343,1759912241219,-500.0,0.00021369,2]
[389966345,1759912241229,-151.0,0.00021369,7]
[389966347,1759912241238,-151.0,0.00021369,7]
[389966349,1759912241247,-500.0,0.00021369,2]
[389966351,1759912241256,-501.25366752,0.00021369,2]
[389966353,1759912241267,-502.15000108,0.00021369,2]
[389966355,1759912241279,-500.0,0.00021369,2]
[389966357,1759912241288,-500.0,0.00021369,2]
[389966359,1759912241297,-500.0,0.00021369,2]
[389966361,1759912241307,-500.0,0.00021369,2]
[389966363,1759912241316,-500.0,0.00021369,2]
[389966365,1759912241325,-151.341958,0.00021369,7]
[389966367,1759912241334,-501.13212543,0.00021369,2]
[389966369,1759912241344,-500.0,0.00021369,2]
[389966371,1759912241354,-500.0,0.00021369,2]
[389966373,1759912241363,-500.0,0.00021369,2]
[389966375,1759912241372,-500.0,0.00021369,2]
[389966377,1759912241381,-500.0,0.00021369,2]
[389966379,1759912241390,-503.44490376,0.00021369,2]
[389966381,1759912241400,-636.39,0.00021369,2]
[389966383,1759912241410,-619.78,0.00021369,2]
[389966385,1759912241422,-500.0,0.00021369,2]
[389966388,1759912241432,-500.0,0.00021369,2]
[389966390,1759912241441,-501.20150607,0.00021369,2]
[389966392,1759912241450,-428.099582,0.00021369,7]
[389966393,1759912241459,-428.099582,0.00021369,7]
[389966395,1759912241469,-428.099582,0.00021369,7]
[389966397,1759912241477,-428.099582,0.00021369,7]
[389966399,1759912241487,-428.099582,0.00021369,7]
[389966401,1759912241496,-428.099582,0.00021369,7]
[389966403,1759912241505,-533.6232091,0.00021369,2]
[389966405,1759912241514,-428.099582,0.00021369,7]
[389966407,1759912241523,-428.099582,0.00021369,7]
[389966409,1759912241533,-500.0,0.00021369,2]
[389966411,1759912241542,-500.0,0.00021369,2]
[389966413,1759912241551,-500.0,0.00021369,2]
[389966415,1759912241560,-500.0,0.00021369,2]
[389966417,1759912241569,-151.0,0.00021369,7]
[389966419,1759912241578,-151.0,0.00021369,7]
[389966421,1759912241587,-500.0,0.00021369,2]
[389966423,1759912241596,-500.0,0.00021369,2]
[389966425,1759912241605,-1306.84,0.00021369,2]
[389966427,1759912241615,-486.66243912,0.00021369,2]
[389966429,1759912241624,-500.0,0.00021369,2]
[389966431,1759912241634,-500.0,0.00021369,2]
[389966433,1759912241643,-500.0,0.00021369,2]
[389966435,1759912241652,-500.72186928,0.00021369,2]
[389966437,1759912241662,-500.0,0.00021369,2]
[389966439,1759912241671,-500.33806792,0.00021369,2]
[389966441,1759912241681,-566.38,0.00021369,2]
[389966443,1759912241690,-2177.35,0.00021369,2]
[389966445,1759912241699,-1302.4,0.00021369,2]
[389966447,1759912241709,-500.0,0.00021369,2]
[389966449,1759912241718,-500.0,0.00021369,2]
[389966451,1759912241728,-791.82,0.00021369,2]
[389966453,1759912241737,-151.0,0.00021369,7]
[389966456,1759912241748,-151.0,0.00021369,7]
[389966457,1759912241757,-907.57,0.00021369,2]
[389966459,1759912241766,-151.0,0.00021369,7]
[389966461,1759912241780,-151.0,0.00021369,7]
[389966463,1759912241789,-500.0,0.00021369,2]
[389966465,1759912241798,-500.0,0.00021369,2]
[389966467,1759912241807,-260.63959755,0.00021369,2]
[389966470,1759912241819,-151.0,0.00021369,2]
[389966472,1759912241829,-6229.14,0.00021369,2]
[389966473,1759912241838,-500.0,0.00021369,2]
[389966475,1759912241849,-500.0,0.00021369,2]
[389966477,1759912241859,-1727.69,0.00021369,2]
[389966479,1759912241869,-500.0,0.00021369,2]
[389966481,1759912241879,-153.40546928,0.00021369,2]
[389966483,1759912241888,-151.0,0.00021369,2]
[389966485,1759912241897,-500.0,0.00021369,2]
[389966487,1759912241906,-500.0,0.00021369,2]
[389966489,1759912241916,-500.0,0.00021369,2]
[389966491,1759912241925,-3686.0,0.00021369,2]
[389966493,1759912241934,-500.0,0.00021369,2]
[389966495,1759912241943,-500.0,0.00021369,2]
[389966497,1759912241953,-2905.59,0.00021369,2]
[389966499,1759912241962,-500.0,0.00021369,2]
[389966501,1759912241971,-500.0,0.00021369,2]
[389966503,1759912241980,-500.0,0.00021369,2]
[389966505,1759912241989,-500.0,0.00021369,2]
[389966507,1759912241998,-250.62981531,0.00021369,2]
[389966509,1759912242008,-864.82,0.00021369,2]
[389966511,1759912242017,-1245.2,0.00021369,2]
[389966513,1759912242026,-500.0,0.00021369,2]
[389966515,1759912242035,-183.077275,0.00021369,7]
[389966517,1759912242044,-155.694018,0.00021369,7]
[389966519,1759912242054,-500.0,0.00021369,2]
[389966521,1759912242063,-574.51,0.00021369,2]
[389966523,1759912242073,-286.74293775,0.00021369,2]
[389966525,1759912242081,-504.98734939,0.00021369,2]
[389966527,1759912242091,-1336.64,0.00021369,2]
[389966529,1759912242100,-2640.44,0.00021369,2]
[389966531,1759912242110,-890.71,0.00021369,2]
[389966533,1759912242120,-500.0,0.00021369,2]
[389966535,1759912242129,-501.40964491,0.00021369,2]
[389966537,1759912242138,-500.0,0.00021369,2]
[389966539,1759912242147,-151.0,0.00021369,7]
[389966541,1759912242157,-151.0,0.00021369,7]
[389966543,1759912242166,-151.0,0.00021369,7]
[389966545,1759912242176,-500.0,0.00021369,2]
[389966547,1759912242186,-151.0,0.00021369,7]
[389966549,1759912242195,-502.75467202,0.00021369,2]
[389966551,1759912242205,-500.0,0.00021369,2]
[389966553,1759912242214,-500.0,0.00021369,2]
[389966555,1759912242223,-500.0,0.00021369,2]
[389966557,1759912242232,-151.0,0.00021369,7]
[389966559,1759912242241,-500.0,0.00021369,2]
[389966561,1759912242253,-151.0,0.00021369,7]
[389966564,1759912242268,-151.0,0.00021369,7]
[389966567,1759912242282,-151.0,0.00021369,7]
[389966569,1759912242295,-464.69227011,0.00021369,2]